[Event "Titled Tuesday Blitz August 3 2021"]
[White "Palchuk, Andrii"]
[Black "Khoroshev, Nikita"]
[WhiteFideId "14176688"]
[BlackFideId "14200287"]
[WhiteElo "2284"]
[BlackElo "2328"]
[Result "0-1"]
[Round "05"]
[TimeControl "180+1"]
[Date "2021.08.03"]
[WhiteClock "0:00:05"]
[BlackClock "0:00:22"]

1. e4 {[%clk 0:03:00]}  e5 {[%clk 0:02:59]} 2. Nf3 {[%clk 0:03:01]}  Nc6 {[%clk 0:02:58]} 3. d4 {[%clk 0:03:01]}  exd4 {[%clk 0:02:58]} 4. Nxd4 {[%clk 0:03:02]}  Nf6 {[%clk 0:02:58]} 5. Nc3 {[%clk 0:03:01]}  Bb4 {[%clk 0:02:57]} 6. Nxc6 {[%clk 0:03:02]}  bxc6 {[%clk 0:02:56]} 7. Bd3 {[%clk 0:03:02]}  d5 {[%clk 0:02:56]} 8. exd5 {[%clk 0:03:03]}  O-O {[%clk 0:02:57]} 9. O-O {[%clk 0:03:03]}  cxd5 {[%clk 0:02:57]} 10. h3 {[%clk 0:03:03]}  c6 {[%clk 0:02:54]} 11. Qf3 {[%clk 0:03:03]}  Bd6 {[%clk 0:02:51]} 12. Ne2 {[%clk 0:03:02]}  Re8 {[%clk 0:02:47]} 13. Bg5 {[%clk 0:02:54]}  Be5 {[%clk 0:02:41]} 14. c3 {[%clk 0:02:53]}  h6 {[%clk 0:02:41]} 15. Bh4 {[%clk 0:02:52]}  Qd6 {[%clk 0:02:08]} 16. Bg3 {[%clk 0:02:47]}  Bd7 {[%clk 0:02:00]} 17. Rfd1 {[%clk 0:02:19]}  Rab8 {[%clk 0:01:56]} 18. Rab1 {[%clk 0:02:18]}  Qc5 {[%clk 0:01:36]} 19. Nd4 {[%clk 0:02:08]}  Qd6 {[%clk 0:01:29]} 20. Bf5 {[%clk 0:02:03]}  Bxg3 {[%clk 0:01:23]} 21. fxg3 {[%clk 0:01:58]}  Bxf5 {[%clk 0:01:17]} 22. Nxf5 {[%clk 0:01:57]}  Qc5+ {[%clk 0:01:17]} 23. Kh2 {[%clk 0:01:55]}  Re6 {[%clk 0:01:10]} 24. Re1 {[%clk 0:01:30]}  Ne4 {[%clk 0:01:03]} 25. Qf4 {[%clk 0:00:44]}  Rf8 {[%clk 0:00:56]} 26. Re3 {[%clk 0:00:35]}  Rf6 {[%clk 0:00:52]} 27. Rf3 {[%clk 0:00:17]}  Kh8 {[%clk 0:00:45]} 28. Qh4 {[%clk 0:00:16]}  Nd2 {[%clk 0:00:39]} 29. Rbf1 {[%clk 0:00:13]}  Nxf1+ {[%clk 0:00:39]} 30. Rxf1 {[%clk 0:00:13]}  Qc4 {[%clk 0:00:35]} 31. Rf4 {[%clk 0:00:13]}  g5 {[%clk 0:00:23]} 32. Rxc4 {[%clk 0:00:03]}  gxh4 {[%clk 0:00:23]} 33. Rxh4 {[%clk 0:00:04]}  Rxf5 {[%clk 0:00:24]} 34. Rxh6+ {[%clk 0:00:04]}  Kg7 {[%clk 0:00:24]} 35. Rxc6 {[%clk 0:00:05]}  Rf2 {[%clk 0:00:24]} 36. Rc7 {[%clk 0:00:04]}  Rxb2 {[%clk 0:00:23]} 37. Rxa7 {[%clk 0:00:05]}  Rc8 {[%clk 0:00:23]} 38. Rd7 {[%clk 0:00:05]}  Rxc3 {[%clk 0:00:23]} 39. Rxd5 {[%clk 0:00:05]}  Rcc2 {[%clk 0:00:24]} 40. g4 {[%clk 0:00:04]}  Rxg2+ {[%clk 0:00:23]} 41. Kh1 {[%clk 0:00:04]}  Rgc2 {[%clk 0:00:24]} 42. Rd1 {[%clk 0:00:04]}  Rxa2 {[%clk 0:00:23]} 43. Rf1 {[%clk 0:00:05]}  Rh2+ {[%clk 0:00:23]} 44. Kg1 {[%clk 0:00:05]}  Rag2# {[%clk 0:00:22]} 0-1


[Site "https://www.chess.com"]

[Event "Titled Tuesday Blitz August 3 2021"]
[White "Petesch, Gabriel"]
[Black "Shkapenko, Pavel"]
[WhiteFideId "2032465"]
[BlackFideId "4151933"]
[WhiteElo "2374"]
[BlackElo "2386"]
[Result "1/2-1/2"]
[Round "05"]
[TimeControl "180+1"]
[Date "2021.08.03"]
[WhiteClock "0:00:16"]
[BlackClock "0:00:16"]

1. Nf3 {[%clk 0:02:58]}  Nf6 {[%clk 0:02:56]} 2. d4 {[%clk 0:02:59]}  e6 {[%clk 0:02:55]} 3. g3 {[%clk 0:03:00]}  c5 {[%clk 0:02:55]} 4. Bg2 {[%clk 0:03:01]}  Nc6 {[%clk 0:02:55]} 5. O-O {[%clk 0:03:02]}  cxd4 {[%clk 0:02:55]} 6. Nxd4 {[%clk 0:03:01]}  Qb6 {[%clk 0:02:56]} 7. Nb3 {[%clk 0:02:57]}  d5 {[%clk 0:02:54]} 8. N1d2 {[%clk 0:02:50]}  e5 {[%clk 0:02:51]} 9. e3 {[%clk 0:02:49]}  Be6 {[%clk 0:02:50]} 10. c3 {[%clk 0:02:46]}  Be7 {[%clk 0:02:49]} 11. Qe2 {[%clk 0:02:43]}  O-O {[%clk 0:02:44]} 12. Rd1 {[%clk 0:02:21]}  Rfd8 {[%clk 0:02:35]} 13. h3 {[%clk 0:02:13]}  a5 {[%clk 0:01:57]} 14. Nf3 {[%clk 0:02:08]}  h6 {[%clk 0:01:51]} 15. Kh2 {[%clk 0:02:06]}  Rd7 {[%clk 0:01:37]} 16. Nbd2 {[%clk 0:02:06]}  Rad8 {[%clk 0:01:33]} 17. b3 {[%clk 0:02:05]}  Ne4 {[%clk 0:01:34]} 18. Bb2 {[%clk 0:02:02]}  f5 {[%clk 0:01:31]} 19. c4 {[%clk 0:01:55]}  Nxd2 {[%clk 0:01:22]} 20. Nxd2 {[%clk 0:01:45]}  e4 {[%clk 0:01:18]} 21. cxd5 {[%clk 0:01:38]}  Rxd5 {[%clk 0:01:06]} 22. Nc4 {[%clk 0:01:38]}  Qc7 {[%clk 0:01:03]} 23. Rxd5 {[%clk 0:01:34]}  Rxd5 {[%clk 0:01:01]} 24. Rd1 {[%clk 0:01:31]}  Qd8 {[%clk 0:00:59]} 25. Rxd5 {[%clk 0:01:29]}  Qxd5 {[%clk 0:00:57]} 26. Qh5 {[%clk 0:01:27]}  Bf7 {[%clk 0:00:50]} 27. Qe2 {[%clk 0:01:26]}  Qd3 {[%clk 0:00:33]} 28. Bf1 {[%clk 0:01:19]}  Qxe2 {[%clk 0:00:31]} 29. Bxe2 {[%clk 0:01:20]}  Bc5 {[%clk 0:00:25]} 30. Kg2 {[%clk 0:01:13]}  b6 {[%clk 0:00:25]} 31. Kf1 {[%clk 0:01:10]}  Nb4 {[%clk 0:00:25]} 32. a3 {[%clk 0:01:04]}  Nd3 {[%clk 0:00:25]} 33. Bxd3 {[%clk 0:00:52]}  exd3 {[%clk 0:00:25]} 34. Ke1 {[%clk 0:00:52]}  a4 {[%clk 0:00:26]} 35. Kd2 {[%clk 0:00:48]}  axb3 {[%clk 0:00:26]} 36. Kxd3 {[%clk 0:00:48]}  Bd5 {[%clk 0:00:23]} 37. Kc3 {[%clk 0:00:31]}  Kf7 {[%clk 0:00:20]} 38. a4 {[%clk 0:00:25]}  Kg6 {[%clk 0:00:18]} 39. Kxb3 {[%clk 0:00:24]}  Bg2 {[%clk 0:00:18]} 40. Ne5+ {[%clk 0:00:22]}  Kh5 {[%clk 0:00:17]} 41. Nd7 {[%clk 0:00:17]}  Bxh3 {[%clk 0:00:13]} 42. Nxc5 {[%clk 0:00:17]}  bxc5 {[%clk 0:00:13]} 43. Bxg7 {[%clk 0:00:15]}  Kg4 {[%clk 0:00:13]} 44. Bxh6 {[%clk 0:00:14]}  Kf3 {[%clk 0:00:13]} 45. a5 {[%clk 0:00:13]}  Bf1 {[%clk 0:00:13]} 46. Bf4 {[%clk 0:00:11]}  Kxf2 {[%clk 0:00:12]} 47. Kc3 {[%clk 0:00:11]}  Kf3 {[%clk 0:00:12]} 48. Bd6 {[%clk 0:00:10]}  Kxe3 {[%clk 0:00:11]} 49. Bxc5+ {[%clk 0:00:11]}  Ke4 {[%clk 0:00:12]} 50. Bd6 {[%clk 0:00:11]}  Kd5 {[%clk 0:00:12]} 51. Bf4 {[%clk 0:00:11]}  Kc6 {[%clk 0:00:12]} 52. Kd4 {[%clk 0:00:11]}  Kb5 {[%clk 0:00:11]} 53. Bc7 {[%clk 0:00:11]}  Bh3 {[%clk 0:00:11]} 54. Ke3 {[%clk 0:00:11]}  Bg4 {[%clk 0:00:11]} 55. Bb6 {[%clk 0:00:11]}  Ka6 {[%clk 0:00:11]} 56. Kf4 {[%clk 0:00:12]}  Bh3 {[%clk 0:00:11]} 57. Ke5 {[%clk 0:00:13]}  Bg4 {[%clk 0:00:12]} 58. Kf6 {[%clk 0:00:13]}  Bh3 {[%clk 0:00:12]} 59. Kg5 {[%clk 0:00:13]}  Bg4 {[%clk 0:00:13]} 60. Kh4 {[%clk 0:00:13]}  Kb7 {[%clk 0:00:13]} 61. Kg5 {[%clk 0:00:13]}  Ka6 {[%clk 0:00:14]} 62. Kf4 {[%clk 0:00:14]}  Kb7 {[%clk 0:00:14]} 63. Ke3 {[%clk 0:00:14]}  Ka6 {[%clk 0:00:15]} 64. Kd4 {[%clk 0:00:15]}  Bh3 {[%clk 0:00:14]} 65. Kc5 {[%clk 0:00:15]}  Bg4 {[%clk 0:00:14]} 66. Bd8 {[%clk 0:00:16]}  Bh3 {[%clk 0:00:15]} 67. Kd6 {[%clk 0:00:16]}  Bg4 {[%clk 0:00:15]} 68. Ke5 {[%clk 0:00:15]}  Kb7 {[%clk 0:00:15]} 69. Kf4 {[%clk 0:00:16]}  Ka6 {[%clk 0:00:16]} 70. Bb6 {[%clk 0:00:16]} 1/2-1/2


[Site "https://www.chess.com"]

[Event "Titled Tuesday Blitz August 3 2021"]
[White "Petrovskyi, Vadym"]
[Black "Mortazavi, Ali"]
[WhiteFideId "14165210"]
[BlackFideId "401323"]
[WhiteElo "2305"]
[BlackElo "2339"]
[Result "0-1"]
[Round "05"]
[TimeControl "180+1"]
[Date "2021.08.03"]
[WhiteClock "0:00:14"]
[BlackClock "0:00:25"]

1. e4 {[%clk 0:02:47]}  c6 {[%clk 0:02:59]} 2. d4 {[%clk 0:02:43]}  d5 {[%clk 0:02:59]} 3. Nc3 {[%clk 0:02:43]}  dxe4 {[%clk 0:03:00]} 4. Nxe4 {[%clk 0:02:44]}  Nf6 {[%clk 0:03:00]} 5. Nxf6+ {[%clk 0:02:44]}  exf6 {[%clk 0:03:01]} 6. c3 {[%clk 0:02:45]}  Bd6 {[%clk 0:03:01]} 7. Bd3 {[%clk 0:02:45]}  O-O {[%clk 0:03:02]} 8. Ne2 {[%clk 0:02:45]}  Re8 {[%clk 0:03:03]} 9. Qc2 {[%clk 0:02:46]}  h5 {[%clk 0:03:03]} 10. Be3 {[%clk 0:02:46]}  Nd7 {[%clk 0:03:02]} 11. O-O {[%clk 0:02:46]}  h4 {[%clk 0:02:47]} 12. h3 {[%clk 0:02:44]}  Nf8 {[%clk 0:02:47]} 13. Rfe1 {[%clk 0:02:44]}  Bc7 {[%clk 0:02:45]} 14. Rad1 {[%clk 0:02:32]}  Be6 {[%clk 0:02:45]} 15. b3 {[%clk 0:02:30]}  b5 {[%clk 0:02:29]} 16. c4 {[%clk 0:02:19]}  bxc4 {[%clk 0:02:28]} 17. bxc4 {[%clk 0:02:20]}  Rc8 {[%clk 0:02:04]} 18. Nf4 {[%clk 0:01:45]}  Bxf4 {[%clk 0:01:51]} 19. Bxf4 {[%clk 0:01:46]}  Qa5 {[%clk 0:01:51]} 20. Bd6 {[%clk 0:01:33]}  Qg5 {[%clk 0:01:33]} 21. Re3 {[%clk 0:01:23]}  Ng6 {[%clk 0:01:23]} 22. Rde1 {[%clk 0:01:17]}  Red8 {[%clk 0:01:11]} 23. c5 {[%clk 0:01:08]}  Bd5 {[%clk 0:01:03]} 24. Be4 {[%clk 0:00:58]}  Bxe4 {[%clk 0:00:44]} 25. Rxe4 {[%clk 0:00:59]}  Qd5 {[%clk 0:00:41]} 26. Rb1 {[%clk 0:00:41]}  f5 {[%clk 0:00:36]} 27. Ree1 {[%clk 0:00:40]}  Re8 {[%clk 0:00:34]} 28. Re4 {[%clk 0:00:40]}  Rxe4 {[%clk 0:00:33]} 29. Rb7 {[%clk 0:00:33]}  Rce8 {[%clk 0:00:33]} 30. Rxa7 {[%clk 0:00:27]}  Nf4 {[%clk 0:00:26]} 31. Be5 {[%clk 0:00:14]}  Re1+ {[%clk 0:00:25]} 0-1


[Site "https://www.chess.com"]

[Event "Titled Tuesday Blitz August 3 2021"]
[White "Pires, Marcos Vinicius Torsani"]
[Black "Potapova, Margarita"]
[WhiteFideId "2118939"]
[BlackFideId "14126869"]
[WhiteElo "2273"]
[BlackElo "2229"]
[Result "0-1"]
[Round "05"]
[TimeControl "180+1"]
[Date "2021.08.03"]
[WhiteClock "0:00:04"]
[BlackClock "0:00:06"]

1. e4 {[%clk 0:03:00]}  c5 {[%clk 0:03:00]} 2. c3 {[%clk 0:02:59]}  Nf6 {[%clk 0:02:57]} 3. e5 {[%clk 0:02:59]}  Nd5 {[%clk 0:02:57]} 4. d4 {[%clk 0:03:00]}  cxd4 {[%clk 0:02:55]} 5. Nf3 {[%clk 0:03:00]}  d6 {[%clk 0:02:51]} 6. cxd4 {[%clk 0:02:58]}  Nc6 {[%clk 0:02:49]} 7. Bc4 {[%clk 0:02:58]}  Nb6 {[%clk 0:02:47]} 8. Bb5 {[%clk 0:02:58]}  dxe5 {[%clk 0:02:43]} 9. Nxe5 {[%clk 0:02:59]}  Bd7 {[%clk 0:02:43]} 10. Nxd7 {[%clk 0:02:53]}  Qxd7 {[%clk 0:02:42]} 11. O-O {[%clk 0:02:54]}  e6 {[%clk 0:02:42]} 12. Nc3 {[%clk 0:02:52]}  Be7 {[%clk 0:02:38]} 13. Qg4 {[%clk 0:02:50]}  O-O {[%clk 0:02:35]} 14. Bh6 {[%clk 0:02:42]}  Bf6 {[%clk 0:02:29]} 15. Bxc6 {[%clk 0:02:33]}  bxc6 {[%clk 0:02:22]} 16. Rfd1 {[%clk 0:02:23]}  Kh8 {[%clk 0:02:20]} 17. Be3 {[%clk 0:02:20]}  Nd5 {[%clk 0:02:16]} 18. Ne4 {[%clk 0:02:17]}  Be7 {[%clk 0:02:15]} 19. Qh3 {[%clk 0:02:02]}  Rab8 {[%clk 0:02:04]} 20. b3 {[%clk 0:01:48]}  f5 {[%clk 0:02:03]} 21. Nc5 {[%clk 0:01:35]}  Bxc5 {[%clk 0:02:02]} 22. dxc5 {[%clk 0:01:36]}  e5 {[%clk 0:01:59]} 23. Bc1 {[%clk 0:01:13]}  Qe7 {[%clk 0:01:54]} 24. Bb2 {[%clk 0:01:11]}  Rbe8 {[%clk 0:01:27]} 25. Rac1 {[%clk 0:01:10]}  Qg5 {[%clk 0:01:24]} 26. Qg3 {[%clk 0:01:08]}  Qf6 {[%clk 0:01:18]} 27. Re1 {[%clk 0:00:54]}  f4 {[%clk 0:01:17]} 28. Qf3 {[%clk 0:00:52]}  Qg5 {[%clk 0:01:15]} 29. Rc4 {[%clk 0:00:41]}  Nf6 {[%clk 0:01:09]} 30. Qxc6 {[%clk 0:00:38]}  f3 {[%clk 0:00:55]} 31. Qxf3 {[%clk 0:00:30]}  Qd2 {[%clk 0:00:52]} 32. Qe2 {[%clk 0:00:27]}  Qg5 {[%clk 0:00:46]} 33. h3 {[%clk 0:00:22]}  Nh5 {[%clk 0:00:45]} 34. Bxe5 {[%clk 0:00:16]}  Nf4 {[%clk 0:00:40]} 35. Re4 {[%clk 0:00:06]}  Nxe2+ {[%clk 0:00:38]} 36. R1xe2 {[%clk 0:00:07]}  Rc8 {[%clk 0:00:31]} 37. b4 {[%clk 0:00:06]}  a5 {[%clk 0:00:26]} 38. a3 {[%clk 0:00:06]}  axb4 {[%clk 0:00:25]} 39. axb4 {[%clk 0:00:07]}  Qc1+ {[%clk 0:00:25]} 40. Kh2 {[%clk 0:00:07]}  Qb1 {[%clk 0:00:25]} 41. Rg4 {[%clk 0:00:06]}  Rf7 {[%clk 0:00:23]} 42. Re3 {[%clk 0:00:06]}  Qf5 {[%clk 0:00:16]} 43. f4 {[%clk 0:00:04]}  Kg8 {[%clk 0:00:11]} 44. Reg3 {[%clk 0:00:04]}  g6 {[%clk 0:00:11]} 45. Rg5 {[%clk 0:00:04]}  Qe6 {[%clk 0:00:11]} 46. h4 {[%clk 0:00:04]}  Rf5 {[%clk 0:00:09]} 47. h5 {[%clk 0:00:04]}  Rxg5 {[%clk 0:00:09]} 48. Rxg5 {[%clk 0:00:05]}  Kf7 {[%clk 0:00:08]} 49. hxg6+ {[%clk 0:00:06]}  hxg6 {[%clk 0:00:08]} 50. Kg3 {[%clk 0:00:07]}  Rd8 {[%clk 0:00:08]} 51. Rg4 {[%clk 0:00:07]}  Rd3+ {[%clk 0:00:08]} 52. Kh2 {[%clk 0:00:07]}  Qa2 {[%clk 0:00:08]} 53. Rh4 {[%clk 0:00:07]}  Rd2 {[%clk 0:00:07]} 54. Rg4 {[%clk 0:00:05]}  Qb3 {[%clk 0:00:06]} 55. Rg3 {[%clk 0:00:04]}  Qxb4 {[%clk 0:00:06]} 56. f5 {[%clk 0:00:05]}  gxf5 {[%clk 0:00:05]} 57. Bd6 {[%clk 0:00:05]}  Qd4 {[%clk 0:00:04]} 58. Rf3 {[%clk 0:00:05]}  Ke6 {[%clk 0:00:03]} 59. Kg3 {[%clk 0:00:04]}  Qg4+ {[%clk 0:00:03]} 60. Kh2 {[%clk 0:00:04]}  Qh4+ {[%clk 0:00:04]} 61. Rh3 {[%clk 0:00:04]}  Qe1 {[%clk 0:00:05]} 62. Bg3 {[%clk 0:00:04]}  Qe2 {[%clk 0:00:04]} 63. Rh6+ {[%clk 0:00:03]}  Kf7 {[%clk 0:00:04]} 64. Kh3 {[%clk 0:00:04]}  Qg4+ {[%clk 0:00:03]} 65. Kh2 {[%clk 0:00:04]}  Qe2 {[%clk 0:00:04]} 66. Kh3 {[%clk 0:00:04]}  Qxg2+ {[%clk 0:00:04]} 67. Kh4 {[%clk 0:00:04]}  Qe4+ {[%clk 0:00:05]} 68. Kg5 {[%clk 0:00:04]}  Qg4# {[%clk 0:00:06]} 0-1


[Site "https://www.chess.com"]

[Event "Titled Tuesday Blitz August 3 2021"]
[White "Ponikarovsky, Alexey"]
[Black "Nozdrachev, Leonid"]
[WhiteFideId "4122887"]
[BlackFideId "24113433"]
[WhiteElo "1944"]
[BlackElo "2221"]
[Result "1-0"]
[Round "05"]
[TimeControl "180+1"]
[Date "2021.08.03"]
[WhiteClock "0:01:23"]
[BlackClock "0:00:11"]

1. e4 {[%clk 0:03:00]}  c6 {[%clk 0:02:56]} 2. d4 {[%clk 0:03:00]}  d5 {[%clk 0:02:56]} 3. exd5 {[%clk 0:03:01]}  cxd5 {[%clk 0:02:56]} 4. Nf3 {[%clk 0:03:02]}  Nc6 {[%clk 0:02:54]} 5. c4 {[%clk 0:03:03]}  Nf6 {[%clk 0:02:52]} 6. Nc3 {[%clk 0:03:04]}  g6 {[%clk 0:02:45]} 7. cxd5 {[%clk 0:03:05]}  Nxd5 {[%clk 0:02:44]} 8. Bb5 {[%clk 0:03:05]}  Bg7 {[%clk 0:02:42]} 9. O-O {[%clk 0:02:53]}  O-O {[%clk 0:02:40]} 10. h3 {[%clk 0:02:54]}  Nc7 {[%clk 0:02:33]} 11. Bxc6 {[%clk 0:02:52]}  bxc6 {[%clk 0:02:33]} 12. Be3 {[%clk 0:02:52]}  Nd5 {[%clk 0:02:27]} 13. Qd2 {[%clk 0:02:53]}  Rb8 {[%clk 0:02:22]} 14. Rab1 {[%clk 0:02:45]}  Bf5 {[%clk 0:02:20]} 15. Rbc1 {[%clk 0:02:46]}  c5 {[%clk 0:02:06]} 16. Rfe1 {[%clk 0:02:41]}  Nxe3 {[%clk 0:02:02]} 17. fxe3 {[%clk 0:02:39]}  cxd4 {[%clk 0:02:01]} 18. exd4 {[%clk 0:02:39]}  Qd6 {[%clk 0:01:45]} 19. Rcd1 {[%clk 0:02:33]}  Rfd8 {[%clk 0:01:39]} 20. Kh1 {[%clk 0:02:33]}  Qb4 {[%clk 0:01:19]} 21. b3 {[%clk 0:02:28]}  Rbc8 {[%clk 0:01:18]} 22. Na4 {[%clk 0:02:25]}  Qxd2 {[%clk 0:01:17]} 23. Rxd2 {[%clk 0:02:26]}  Bf6 {[%clk 0:01:08]} 24. Nc5 {[%clk 0:02:22]}  h5 {[%clk 0:01:01]} 25. Ne4 {[%clk 0:02:20]}  Bxe4 {[%clk 0:00:58]} 26. Rxe4 {[%clk 0:02:21]}  Rd5 {[%clk 0:00:57]} 27. Kg1 {[%clk 0:02:19]}  Kg7 {[%clk 0:00:52]} 28. Kf2 {[%clk 0:02:17]}  Rc3 {[%clk 0:00:51]} 29. Ke2 {[%clk 0:02:04]}  a5 {[%clk 0:00:51]} 30. Kd1 {[%clk 0:02:02]}  a4 {[%clk 0:00:50]} 31. Rc2 {[%clk 0:01:59]}  Rd3+ {[%clk 0:00:37]} 32. Rd2 {[%clk 0:01:59]}  Rxd2+ {[%clk 0:00:37]} 33. Kxd2 {[%clk 0:01:56]}  axb3 {[%clk 0:00:37]} 34. axb3 {[%clk 0:01:57]}  Ra5 {[%clk 0:00:36]} 35. Re2 {[%clk 0:01:54]}  e6 {[%clk 0:00:35]} 36. Kc3 {[%clk 0:01:54]}  Kf8 {[%clk 0:00:32]} 37. Kc4 {[%clk 0:01:54]}  Ke7 {[%clk 0:00:32]} 38. b4 {[%clk 0:01:54]}  Ra1 {[%clk 0:00:32]} 39. Ne5 {[%clk 0:01:53]}  Rc1+ {[%clk 0:00:30]} 40. Kb5 {[%clk 0:01:51]}  Bxe5 {[%clk 0:00:30]} 41. dxe5 {[%clk 0:01:51]}  g5 {[%clk 0:00:27]} 42. Ka6 {[%clk 0:01:49]}  Ra1+ {[%clk 0:00:26]} 43. Kb6 {[%clk 0:01:49]}  g4 {[%clk 0:00:25]} 44. hxg4 {[%clk 0:01:48]}  hxg4 {[%clk 0:00:26]} 45. b5 {[%clk 0:01:48]}  f5 {[%clk 0:00:25]} 46. exf6+ {[%clk 0:01:26]}  Kxf6 {[%clk 0:00:26]} 47. Rc2 {[%clk 0:01:26]}  Ke5 {[%clk 0:00:22]} 48. Kc7 {[%clk 0:01:26]}  Kd4 {[%clk 0:00:20]} 49. b6 {[%clk 0:01:24]}  Rb1 {[%clk 0:00:20]} 50. Rc6 {[%clk 0:01:22]}  e5 {[%clk 0:00:19]} 51. b7 {[%clk 0:01:22]}  Rxb7+ {[%clk 0:00:17]} 52. Kxb7 {[%clk 0:01:23]}  e4 {[%clk 0:00:17]} 53. Rg6 {[%clk 0:01:21]}  e3 {[%clk 0:00:17]} 54. Rxg4+ {[%clk 0:01:21]}  Kd3 {[%clk 0:00:15]} 55. Rg8 {[%clk 0:01:21]}  e2 {[%clk 0:00:11]} 56. Re8 {[%clk 0:01:21]}  Kd2 {[%clk 0:00:11]} 57. g4 {[%clk 0:01:21]}  e1=Q {[%clk 0:00:10]} 58. Rxe1 {[%clk 0:01:22]}  Kxe1 {[%clk 0:00:11]} 59. g5 {[%clk 0:01:23]} 1-0


[Site "https://www.chess.com"]

[Event "Titled Tuesday Blitz August 3 2021"]
[White "Rodrigue-Lemieux, Shawn"]
[Black "Novikov, Evgenij"]
[WhiteFideId "2620049"]
[BlackFideId "4125380"]
[WhiteElo "1763"]
[BlackElo "2242"]
[Result "1-0"]
[Round "05"]
[TimeControl "180+1"]
[Date "2021.08.03"]
[WhiteClock "0:01:39"]
[BlackClock "0:00:09"]

1. c4 {[%clk 0:03:00]}  c6 {[%clk 0:02:59]} 2. Nf3 {[%clk 0:02:56]}  d6 {[%clk 0:02:58]} 3. b3 {[%clk 0:02:57]}  Nd7 {[%clk 0:02:55]} 4. Bb2 {[%clk 0:02:56]}  Qc7 {[%clk 0:02:54]} 5. g3 {[%clk 0:02:54]}  Ngf6 {[%clk 0:02:52]} 6. Bg2 {[%clk 0:02:55]}  g6 {[%clk 0:02:52]} 7. O-O {[%clk 0:02:55]}  Bg7 {[%clk 0:02:52]} 8. e4 {[%clk 0:02:55]}  O-O {[%clk 0:02:52]} 9. d3 {[%clk 0:02:56]}  a6 {[%clk 0:02:46]} 10. Nc3 {[%clk 0:02:55]}  b5 {[%clk 0:02:45]} 11. Qe2 {[%clk 0:02:55]}  b4 {[%clk 0:02:37]} 12. Na4 {[%clk 0:02:53]}  e5 {[%clk 0:02:23]} 13. d4 {[%clk 0:02:51]}  Re8 {[%clk 0:02:12]} 14. dxe5 {[%clk 0:02:46]}  Nxe5 {[%clk 0:02:02]} 15. Nxe5 {[%clk 0:02:44]}  dxe5 {[%clk 0:02:01]} 16. Rad1 {[%clk 0:02:41]}  Bg4 {[%clk 0:01:57]} 17. f3 {[%clk 0:02:40]}  Be6 {[%clk 0:01:52]} 18. Nc5 {[%clk 0:02:38]}  Bf8 {[%clk 0:01:33]} 19. Nxe6 {[%clk 0:02:38]}  Rxe6 {[%clk 0:01:34]} 20. Bh3 {[%clk 0:02:37]}  Re7 {[%clk 0:01:13]} 21. Rd2 {[%clk 0:02:30]}  a5 {[%clk 0:01:00]} 22. Rfd1 {[%clk 0:02:30]}  a4 {[%clk 0:00:54]} 23. Qe3 {[%clk 0:02:23]}  axb3 {[%clk 0:00:52]} 24. axb3 {[%clk 0:02:24]}  Qa7 {[%clk 0:00:43]} 25. Qxa7 {[%clk 0:02:21]}  Raxa7 {[%clk 0:00:41]} 26. Rd8 {[%clk 0:02:22]}  Re8 {[%clk 0:00:33]} 27. Rxe8 {[%clk 0:02:20]}  Nxe8 {[%clk 0:00:33]} 28. Bxe5 {[%clk 0:02:21]}  f6 {[%clk 0:00:25]} 29. Bd4 {[%clk 0:02:15]}  Ra3 {[%clk 0:00:18]} 30. Rd3 {[%clk 0:02:12]}  Nc7 {[%clk 0:00:15]} 31. Bb6 {[%clk 0:02:07]}  Na6 {[%clk 0:00:13]} 32. Be6+ {[%clk 0:02:06]}  Kg7 {[%clk 0:00:13]} 33. Rd7+ {[%clk 0:02:04]}  Kh6 {[%clk 0:00:13]} 34. Be3+ {[%clk 0:02:02]}  g5 {[%clk 0:00:14]} 35. Bf5 {[%clk 0:01:58]}  Bg7 {[%clk 0:00:09]} 36. h4 {[%clk 0:01:47]}  Rxb3 {[%clk 0:00:09]} 37. hxg5+ {[%clk 0:01:43]}  fxg5 {[%clk 0:00:09]} 38. Rd6+ {[%clk 0:01:40]}  Kh5 {[%clk 0:00:09]} 39. Bg4# {[%clk 0:01:39]} 1-0


[Site "https://www.chess.com"]

[Event "Titled Tuesday Blitz August 3 2021"]
[White "Sadovsky, Artem"]
[Black "Ljukin, Sergei"]
[WhiteFideId "4155840"]
[BlackFideId "14102200"]
[WhiteElo "2442"]
[BlackElo "2309"]
[Result "0-1"]
[Round "05"]
[TimeControl "180+1"]
[Date "2021.08.03"]
[WhiteClock "0:00:49"]
[BlackClock "0:01:59"]

1. e3 {[%clk 0:02:55]}  d5 {[%clk 0:02:59]} 2. Ke2 {[%clk 0:02:54]}  Nf6 {[%clk 0:02:59]} 3. f4 {[%clk 0:02:51]}  Nc6 {[%clk 0:02:58]} 4. Nf3 {[%clk 0:02:48]}  Bf5 {[%clk 0:02:50]} 5. d4 {[%clk 0:02:44]}  Ne4 {[%clk 0:02:47]} 6. a3 {[%clk 0:02:41]}  f6 {[%clk 0:02:47]} 7. Qe1 {[%clk 0:02:38]}  e5 {[%clk 0:02:44]} 8. c3 {[%clk 0:02:11]}  Bd6 {[%clk 0:02:42]} 9. Qh4 {[%clk 0:02:02]}  Qd7 {[%clk 0:02:32]} 10. g3 {[%clk 0:01:42]}  O-O-O {[%clk 0:02:29]} 11. Nbd2 {[%clk 0:01:31]}  g5 {[%clk 0:02:23]} 12. fxg5 {[%clk 0:01:24]}  fxg5 {[%clk 0:02:23]} 13. Qh6 {[%clk 0:01:07]}  Rdg8 {[%clk 0:02:21]} 14. dxe5 {[%clk 0:01:02]}  Nxe5 {[%clk 0:02:13]} 15. Nd4 {[%clk 0:00:58]}  Bg4+ {[%clk 0:02:02]} 16. Ke1 {[%clk 0:00:57]}  Rg6 {[%clk 0:02:01]} 17. Qxg6 {[%clk 0:00:48]}  hxg6 {[%clk 0:02:00]} 18. Nxe4 {[%clk 0:00:49]}  dxe4 {[%clk 0:01:59]} 0-1


[Site "https://www.chess.com"]